bitfinex-derivatives/quotes_ETHF0:USTF0_20260209
["timestamp","ask_amount","ask_price","bid_price","bid_amount"]
[1770642983301,40.8,2043.0,2042.2,0.59318001]
[1770642986399,40.8,2043.0,2042.3,0.60163273]
[1770642991497,0.56389864,2042.8,2041.9,0.53386418]
[1770642991685,5.37150717,2042.9,2041.9,0.53386418]
[1770642991686,0.56389864,2042.6,2041.9,0.53386418]
[1770642992496,0.56863026,2042.6,2041.9,0.5398294]
[1770642995202,0.00473162,2042.6,2041.9,0.5398294]
[1770642995594,0.52821732,2042.6,2041.9,0.5398294]
[1770642995790,0.52821732,2042.6,2041.9,0.00596522]
[1770642995998,0.52821732,2042.6,2041.9,0.5398294]
[1770642996804,0.77324732,2042.6,2041.9,0.00596522]
[1770642996994,0.52286073,2042.4,2041.4,4.85924281]
[1770642997298,0.5191768,2042.2,2041.2,0.53386418]
[1770642997594,0.5191768,2042.0,2041.3,0.53386418]
[1770642997999,0.5191768,2042.0,2041.3,0.53777747]
[1770642999203,40.8,2042.1,2041.3,0.53777747]
[1770642999390,41.309204,2042.1,2041.3,0.53777747]
[1770643000504,41.309204,2042.1,2041.3,0.00391329]
[1770643000505,0.51424798,2042.0,2041.3,0.00391329]
[1770643001201,0.51424798,2042.0,2041.3,0.53777747]
[1770643001407,0.51424798,2042.0,2041.5,5.76603689]
[1770643001801,0.51424798,2042.0,2041.3,0.00391329]
[1770643003303,0.49865731,2041.8,2041.3,0.00391329]
[1770643003499,0.49865731,2041.8,2040.7,8.64707292]
[1770643003696,0.49865731,2041.8,2040.7,0.53386418]
[1770643003897,0.56389864,2041.6,2040.7,0.53386418]
[1770643004200,41.04508,2042.1,2040.7,0.53386418]
[1770643004201,0.56389864,2041.8,2040.7,0.53386418]
[1770643004702,0.56389864,2041.8,2040.7,0.54012929]
[1770643004903,0.56389864,2041.6,2040.7,0.54012929]
[1770643006699,0.57854217,2041.8,2040.7,0.54012929]
[1770643007401,0.57854217,2041.8,2040.8,0.57006433]
[1770643010713,41.04508,2042.1,2040.8,0.57006433]
[1770643010714,0.57854217,2041.6,2040.8,0.57006433]
[1770643013009,0.82367217,2041.7,2040.8,0.57006433]
[1770643013512,0.57854217,2041.6,2040.8,0.57006433]
[1770643015611,0.57854217,2041.6,2040.7,0.00626511]
[1770643015915,0.57854217,2041.4,2040.7,0.57632944]
[1770643016818,0.57854217,2041.4,2041.0,0.57006433]
[1770643017015,0.57854217,2041.6,2041.0,0.57006433]
[1770643018714,0.57854217,2041.8,2041.0,0.57006433]
[1770643020717,40.8,2042.1,2041.0,0.57006433]
[1770643020918,41.37854217,2042.1,2041.0,0.57006433]
[1770643021222,41.37854217,2042.1,2041.1,0.57006433]
[1770643021736,0.57854217,2041.9,2041.1,0.57006433]
[1770643025630,40.8,2042.1,2041.2,0.57006433]
[1770643025631,41.37854217,2042.1,2041.2,0.57006433]
[1770643025837,0.57854217,2042.0,2041.2,0.57006433]
[1770643031630,40.8,2042.1,2041.6,0.57006433]
[1770643034338,41.37854217,2042.1,2041.6,0.57006433]
[1770643034640,0.57854217,2042.0,2041.6,0.57006433]
[1770643035341,0.57854217,2042.0,2041.4,0.58983455]
[1770643035535,0.57854217,2042.0,2041.3,4.68838804]
[1770643035735,0.57854217,2042.0,2041.3,0.58983455]
[1770643036738,40.8,2042.1,2041.3,0.58983455]
[1770643037142,40.8,2042.1,2041.4,0.58983455]
[1770643038842,0.58866328,2042.4,2041.4,0.58983455]
[1770643039234,0.58866328,2042.2,2041.4,0.58983455]
[1770643040344,40.8,2042.3,2041.5,0.56575921]
[1770643040544,41.38866328,2042.3,2041.5,0.56575921]
[1770643041143,0.58866328,2042.2,2041.5,0.56575921]
[1770643041536,0.58866328,2042.1,2041.5,0.56575921]
[1770643043443,24.093,2042.2,2041.5,0.56575921]
[1770643045945,24.68166328,2042.2,2041.5,0.56575921]
[1770643047448,24.68166328,2042.2,2041.6,0.56575921]
[1770643047644,24.68166328,2042.2,2041.8,6.3317961]
[1770643048743,24.68166328,2042.2,2041.9,0.56575921]
[1770643049549,24.68166328,2042.2,2041.8,6.3317961]
[1770643049849,24.68166328,2042.2,2041.9,0.56575921]
[1770643050253,24.68166328,2042.2,2041.8,5.76603689]
[1770643050254,0.58866328,2042.1,2041.8,5.76603689]
[1770643052857,0.58866328,2042.1,2041.5,0.56575921]
[1770643053056,0.58866328,2042.1,2041.5,5.22965226]
[1770643054157,0.58866328,2042.1,2041.6,0.56575921]
[1770643055455,24.093,2042.2,2041.6,0.56575921]
[1770643055659,24.093,2042.2,2041.7,0.56575921]
[1770643056058,0.58866328,2042.1,2041.7,0.56575921]
[1770643056457,24.68166328,2042.2,2041.7,0.56575921]
[1770643056759,24.093,2042.2,2041.7,0.56575921]
[1770643057554,40.8,2042.3,2041.7,0.56575921]
[1770643057555,64.893,2042.3,2041.8,0.56575921]
[1770643058172,23.093,2042.3,2041.8,0.56575921]
[1770643058361,23.093,2042.3,2041.7,4.66549271]
[1770643058362,0.58866328,2042.2,2041.7,2.91090672]
[1770643058566,0.58866328,2042.2,2041.5,3.47666593]
[1770643058752,0.58866328,2042.0,2041.6,0.56575921]
[1770643059462,0.58866328,2042.0,2041.3,2.91090672]
[1770643059656,0.58866328,2041.9,2041.2,0.56575921]
[1770643060054,0.58866328,2041.9,2041.1,3.47666593]
[1770643061165,0.58866328,2041.9,2041.1,8.13997096]
[1770643061564,0.58866328,2041.9,2041.3,5.76603689]
[1770643062064,22.093,2041.8,2041.3,3.66335936]
[1770643062360,27.31557304,2041.8,2040.8,0.59199217]
[1770643063266,0.00974317,2041.7,2040.8,0.59199217]
[1770643064161,40.80974317,2041.6,2040.8,0.59199217]
[1770643064861,0.00974317,2041.5,2040.8,0.59199217]
[1770643066164,62.893,2041.6,2040.8,0.59199217]
[1770643066368,62.91233368,2041.6,2040.8,0.59199217]
[1770643066559,0.01933368,2041.5,2040.8,0.59199217]
[1770643068461,62.92528853,2041.6,2040.8,0.59199217]
[1770643069466,62.893,2041.6,2040.8,0.59199217]
[1770643071868,0.03195812,2041.5,2040.8,0.59199217]
[1770643072763,62.92495812,2041.6,2040.8,0.59199217]
[1770643074875,0.00920126,2041.5,2040.8,0.59199217]
[1770643076563,0.00318286,2041.4,2040.8,0.59199217]
[1770643077165,22.093,2041.5,2040.8,0.59199217]
[1770643078069,19.22428795,2041.5,2041.0,0.53712505]
[1770643078570,16.3789993,2041.5,2041.0,0.53712505]
[1770643080273,16.3789993,2041.5,2041.0,2.91090672]
[1770643082475,0.59491187,2041.4,2041.0,2.91090672]
[1770643082674,0.59491187,2041.4,2040.9,2.91090672]
[1770643082874,0.59491187,2041.4,2040.8,2.91090672]
[1770643083070,0.59491187,2041.4,2040.7,0.00626511]
[1770643085574,0.59185067,2041.3,2040.7,0.00626511]
[1770643085773,15.81084997,2041.3,2040.7,0.00626511]
[1770643085973,0.59185067,2041.2,2040.7,0.00626511]
[1770643086481,0.59185067,2041.0,2040.3,2.91090672]
[1770643087079,0.59185067,2041.0,2040.2,2.91090672]
[1770643087379,0.59185067,2040.9,2040.2,7.53229088]
[1770643087875,0.59185067,2040.9,2040.3,4.61576322]
[1770643088070,0.59185067,2040.9,2040.2,2.91652766]
[1770643088273,0.60075041,2040.8,2040.2,7.53355742]
[1770643088493,0.60075041,2040.8,2040.2,2.91652766]
[1770643089075,0.60075041,2040.8,2040.2,0.00562094]
[1770643089278,0.60075041,2040.8,2040.2,2.91652766]
[1770643089878,0.60075041,2040.8,2040.0,1.91652766]
[1770643089879,0.60363341,2040.7,2040.0,1.91652766]
[1770643090080,0.60363341,2040.7,2039.9,4.62213844]
[1770643090280,0.60363341,2040.7,2039.7,4.36141657]
[1770643090483,0.60363341,2040.5,2039.8,8.98152307]
[1770643090682,0.60363341,2040.5,2039.9,4.6201065]
[1770643090878,15.2189993,2040.6,2040.0,4.6201065]
[1770643091079,15.82263271,2040.6,2039.9,0.0048944]
[1770643091282,0.60363341,2040.5,2039.9,0.0048944]
[1770643091683,0.60363341,2040.5,2039.9,4.5978148]
[1770643091983,0.60363341,2040.5,2039.9,0.0048944]
[1770643095291,0.60363341,2040.5,2039.9,4.5984261]
[1770643095496,0.60363341,2040.5,2039.9,0.0048944]
[1770643095796,15.82263271,2040.5,2039.9,0.0048944]
[1770643095989,0.60842723,2040.4,2039.9,0.0048944]
[1770643096490,15.2189993,2040.3,2039.7,4.58881992]
[1770643096686,0.6084486,2040.2,2039.2,0.24543]
[1770643096889,0.6084486,2040.0,2039.2,0.24543]
[1770643097095,0.6084486,2039.9,2039.2,4.83506155]
[1770643097394,0.6105864,2039.7,2039.2,0.24892308]
[1770643097590,0.6105864,2039.7,2039.2,0.00349308]
[1770643100094,0.60800016,2039.5,2039.2,0.00349308]
[1770643100394,0.6128268,2039.5,2038.5,4.57971974]
[1770643100596,0.60800016,2039.3,2038.2,4.60695657]
[1770643100790,0.60800016,2039.3,2038.2,9.1862527]
[1770643101090,0.60800016,2039.3,2038.3,4.57929613]
[1770643101394,0.60800016,2039.3,2038.3,4.58335787]
[1770643101592,0.60800016,2039.3,2038.3,0.00406174]
[1770643101797,15.2189993,2039.4,2038.4,3.12585974]
[1770643101993,15.2189993,2039.4,2038.4,9.59144661]
[1770643102190,0.60444907,2039.3,2038.4,9.59144661]
[1770643103303,15.2189993,2039.4,2038.8,0.24547]
[1770643104203,15.82238575,2039.4,2038.8,0.24547]
[1770643105699,0.60129193,2039.3,2038.8,0.24547]
[1770643106004,0.00482664,2039.5,2039.2,0.24542]
[1770643106204,0.60129193,2039.9,2039.2,0.24542]
[1770643107202,0.60710543,2039.9,2039.2,0.24542]
[1770643107905,0.0058135,2039.9,2039.2,0.24542]
[1770643108196,0.0058135,2039.9,2039.0,13.47067521]
[1770643108197,0.0058135,2039.9,2039.4,0.24541]
[1770643110002,3.5e-06,2039.9,2039.4,0.24541]
[1770643110197,0.60643771,2040.2,2039.4,0.24541]
[1770643111203,0.61232854,2040.2,2039.4,0.24541]
[1770643111601,0.00589083,2040.2,2039.6,0.24538]
[1770643112304,8.3e-07,2040.2,2039.6,6.28188]
[1770643112499,8.3e-07,2040.2,2039.8,0.24536]
[1770643113303,8.3e-07,2040.2,2039.8,0.2503477]
[1770643115610,0.60343896,2040.6,2039.8,0.2503477]
[1770643115808,0.60343896,2040.6,2039.8,4.80373972]
[1770643116199,0.60343896,2040.6,2040.0,0.24533]
[1770643116606,0.00587507,2040.6,2040.0,0.24533]
[1770643116800,0.00587507,2040.6,2040.0,4.79984649]
[1770643117506,0.00587507,2040.6,2040.0,0.24533]
[1770643118513,0.5617294,2041.3,2040.4,0.46700699]
[1770643119205,0.5617294,2041.3,2040.6,0.46688179]
[1770643119508,0.56788919,2041.3,2040.6,0.46688179]
[1770643123410,0.56788919,2041.3,2040.8,0.47176494]
[1770643123913,0.00615979,2041.3,2040.8,0.47176494]
[1770643124509,0.00615979,2041.3,2041.0,0.47176494]
[1770643126610,0.55912791,2042.8,2041.4,0.4731895]
[1770643126810,0.55912791,2042.8,2041.6,0.4731895]
[1770643127006,0.55912791,2042.6,2041.6,0.4731895]
[1770643127317,0.55912791,2042.6,2041.5,0.71802027]
[1770643127515,0.56345842,2042.6,2041.5,0.72268696]
[1770643127715,0.56345842,2042.6,2041.6,0.47287027]
[1770643130111,0.56345842,2042.6,2041.5,0.00466669]
[1770643130112,0.55912791,2042.4,2041.5,0.00466669]
[1770643131213,0.55912791,2042.4,2041.5,0.46617806]
[1770643132513,40.8,2042.3,2041.5,0.00466669]
[1770643132817,0.55912791,2042.2,2041.5,0.00466669]
[1770643138022,0.55912791,2042.0,2041.5,0.00466669]
[1770643138422,0.55912791,2042.0,2041.2,0.27464225]
[1770643138626,0.55912791,2042.0,2041.1,0.46545372]
[1770643139330,0.55912791,2042.0,2041.1,0.7437433]
[1770643139624,0.55912791,2042.0,2041.1,0.74795682]
[1770643139824,0.55912791,2042.0,2041.1,0.74836925]
[1770643140120,0.55912791,2041.8,2041.1,0.00421352]
[1770643140320,40.8,2042.1,2041.1,0.00421352]
[1770643140321,0.55912791,2041.6,2041.1,0.00421352]
[1770643140622,0.55912791,2041.6,2040.9,0.46586615]
[1770643141214,0.55912791,2041.6,2040.7,0.74035635]
[1770643141419,0.55912791,2041.6,2040.7,0.74586022]
[1770643141621,0.55912791,2041.7,2041.0,0.46523152]
[1770643142715,0.55912791,2041.7,2041.2,0.46523152]
[1770643142927,0.55912791,2041.7,2041.1,0.2452]
[1770643143117,0.55912791,2041.7,2041.2,0.46523152]
[1770643144023,0.55912791,2042.0,2041.2,0.46523152]
[1770643144428,0.55912791,2042.0,2041.1,0.2452]
[1770643144429,0.55912791,2042.4,2041.4,0.47202561]
[1770643144729,0.55912791,2042.4,2041.6,0.47202561]
[1770643146027,0.55912791,2042.4,2041.5,0.24515]
[1770643146028,0.55912791,2042.4,2041.5,0.71360899]
[1770643147228,0.55912791,2042.4,2041.3,0.45331014]
[1770643147427,0.24935051,2042.6,2041.1,4.36141657]
[1770643147428,0.55912791,2042.2,2041.1,4.92469707]
[1770643147629,0.55912791,2042.2,2041.1,0.45331014]
[1770643147928,0.55912791,2042.2,2041.0,0.69852014]
[1770643148431,0.55912791,2042.2,2041.1,0.45331014]
[1770643149929,0.55912791,2042.2,2041.1,3.35309944]
[1770643150431,0.55912791,2042.0,2041.1,3.35309944]
[1770643151334,0.55912791,2042.0,2041.2,2.8997893]
[1770643151537,0.55912791,2042.0,2041.1,3.35309944]
[1770643152240,0.55912791,2042.0,2041.2,0.45529759]
[1770643153226,0.55912791,2041.8,2041.1,7.38045134]
[1770643153431,0.55912791,2041.8,2040.8,3.35896802]
[1770643153731,0.55912791,2041.8,2040.8,7.83984119]
[1770643154630,0.55912791,2041.8,2040.9,0.45917872]
[1770643155830,0.55912791,2041.8,2041.0,0.4589957]
[1770643156538,41.35139242,2042.1,2041.2,0.4589563]
[1770643156834,0.55139242,2042.0,2041.3,0.4589563]
[1770643157539,40.8,2042.1,2041.3,0.4589563]
[1770643157732,41.35139242,2042.1,2041.4,0.45222837]
[1770643158331,0.55139242,2042.0,2041.4,0.45222837]
[1770643158830,0.55139242,2042.0,2041.3,2.8997893]
[1770643159031,0.55139242,2042.0,2041.4,0.45203676]
[1770643163048,0.55139242,2042.0,2041.3,2.8997893]
[1770643163231,0.55139242,2042.0,2041.3,7.38690955]
[1770643163432,0.55139242,2042.0,2041.3,7.85102351]
[1770643163634,0.55139242,2042.0,2041.4,0.46411396]
[1770643163830,0.59173963,2042.2,2041.4,0.46411396]
[1770643166737,0.59173963,2042.2,2041.5,0.45440267]
[1770643167542,0.59173963,2042.4,2041.7,0.44749596]
[1770643167739,0.59173963,2042.4,2041.8,0.44749596]
[1770643168137,41.39607014,2042.6,2041.8,0.44749596]
[1770643168336,0.59607014,2042.6,2041.9,0.44749596]
[1770643169541,0.59607014,2042.6,2042.0,0.44768009]
[1770643170045,0.59607014,2042.6,2041.8,3.34746939]
[1770643170343,0.59607014,2042.6,2041.7,3.34746939]
[1770643170543,0.59607014,2042.6,2041.7,0.44768009]
[1770643171140,0.59607014,2042.6,2041.9,0.44768009]
[1770643171443,0.00433051,2042.6,2041.9,0.44768009]
[1770643171745,0.00433051,2042.6,2042.0,0.448447]
[1770643172356,0.00433051,2042.6,2042.0,0.693527]
[1770643172547,0.59173963,2043.0,2042.1,0.448447]
[1770643173548,0.59751044,2043.0,2042.1,0.448447]
[1770643175546,0.00577081,2043.0,2042.3,0.41517679]
[1770643175848,0.59751044,2043.0,2042.3,0.419114]
[1770643176746,0.59173963,2043.7,2042.6,3.30919528]
[1770643176949,0.59173963,2043.7,2042.7,0.40940598]
[1770643177150,0.59173963,2043.6,2042.7,0.40940598]
[1770643177748,0.59708324,2043.6,2042.7,0.40940598]
[1770643179444,0.59708324,2043.6,2042.8,0.245]
[1770643179650,0.00534361,2043.6,2042.9,0.40478452]
[1770643180954,0.59708324,2043.6,2042.9,0.40478452]
[1770643181654,0.59708324,2043.6,2042.7,0.40373362]
[1770643181843,0.59708324,2043.6,2042.5,0.40373362]
[1770643182852,0.59708324,2043.6,2042.3,0.65272083]
[1770643182853,0.59173963,2043.4,2042.3,0.65272083]
[1770643183255,0.59173963,2043.4,2042.3,0.40767083]
[1770643186757,0.53701971,2043.2,2042.3,0.40767083]
[1770643187151,40.8,2043.3,2042.3,0.40767083]
[1770643187354,0.54236332,2043.6,2042.5,0.38481293]
[1770643187754,41.34236332,2043.6,2042.5,0.38481293]
[1770643187962,0.00534361,2043.6,2042.7,0.38481293]
[1770643188256,0.54236332,2043.6,2042.9,0.38481293]
[1770643188654,0.54236332,2043.6,2042.8,6.27164853]
[1770643188856,0.54236332,2043.6,2042.3,0.24898721]
[1770643189059,0.54236332,2043.6,2042.4,0.38481293]
[1770643189261,0.54236332,2043.6,2042.5,0.38481293]
[1770643190861,0.54236332,2043.6,2042.7,0.39217342]
[1770643195960,0.54236332,2043.6,2042.5,0.39344641]
[1770643196265,0.54236332,2043.6,2042.4,0.39344641]
[1770643197366,40.8,2043.5,2042.4,0.39344641]
[1770643197566,0.53701971,2043.4,2042.4,0.39344641]
[1770643198765,0.53701971,2043.4,2042.4,3.29323571]
[1770643198966,0.53701971,2043.4,2042.5,0.38933442]
[1770643202362,0.53701971,2043.3,2042.3,3.29642624]
[1770643202563,0.53701971,2043.3,2042.3,0.39663694]
[1770643204170,0.53701971,2043.3,2042.4,0.38869578]
[1770643204366,0.53701971,2043.3,2042.5,0.38869578]
[1770643205669,0.53701971,2043.5,2042.7,0.37696999]
[1770643206171,0.54236332,2043.6,2042.9,0.37696999]
[1770643212974,0.00534361,2043.6,2042.9,0.37696999]
[1770643214976,0.54236332,2043.6,2042.9,0.37696999]
[1770643216472,0.54236332,2043.6,2042.9,3.27675929]
[1770643216775,0.54236332,2043.6,2043.0,0.38985161]
[1770643226984,0.00534361,2043.6,2043.0,0.38985161]
[1770643227877,0.54550343,2044.0,2043.3,0.3950759]
[1770643228883,0.55090472,2044.0,2043.3,0.3950759]
[1770643235388,0.55090472,2044.0,2043.4,0.36091402]
[1770643246702,0.55090472,2044.0,2043.3,0.34754084]
[1770643249200,0.55090472,2044.0,2043.4,0.34242982]
[1770643253201,0.00540129,2044.0,2043.4,0.34242982]
[1770643253401,0.56637997,2044.6,2043.8,0.34206254]
[1770643253606,0.56637997,2044.6,2044.0,0.34206254]
[1770643254005,0.56637997,2044.9,2044.0,4.80905514]
[1770643254208,0.56637997,2044.9,2044.2,0.34206254]
[1770643254406,0.5710389,2044.9,2044.2,0.34686775]
[1770643254807,0.5710389,2044.9,2044.3,0.34206254]
[1770643255205,0.00465893,2044.9,2044.3,3.24185184]
[1770643255403,0.00465893,2044.9,2044.3,7.69629134]
[1770643255600,0.00465893,2044.9,2044.4,0.34686784]
[1770643255804,34.33392229,2045.7,2044.8,0.34686784]
[1770643255805,0.56637997,2045.7,2044.8,0.34686784]
[1770643256308,0.56637997,2045.5,2044.8,0.34686784]
[1770643256715,0.81102997,2045.8,2044.8,0.34686784]
[1770643256912,0.57037662,2045.8,2044.8,0.34686784]
[1770643257111,0.57037662,2045.8,2045.0,0.34686784]
[1770643258317,0.57037662,2045.8,2044.7,0.33776541]
[1770643259020,0.24465,2045.7,2044.5,0.33776541]
[1770643259221,0.56637997,2045.6,2044.5,0.33776541]
[1770643261623,0.56637997,2045.4,2044.3,0.34444714]
[1770643262324,0.56637997,2045.3,2044.2,0.34925235]
[1770643267828,0.56637997,2045.1,2044.2,0.00480521]
[1770643268133,0.56637997,2045.1,2044.2,0.33972342]
[1770643269032,0.56637997,2044.9,2044.2,0.33972342]
[1770643273125,0.24471,2045.2,2044.2,0.33972342]
[1770643273356,0.56637997,2045.1,2044.2,0.33972342]
[1770643275832,0.56637997,2045.1,2044.3,0.32402415]
[1770643276450,0.5469896,2045.2,2044.3,0.32402415]
[1770643277134,0.5469896,2045.4,2044.3,0.32402415]
[1770643277433,0.5469896,2045.6,2044.5,0.3280189]
[1770643277933,0.5469896,2045.4,2044.5,0.3280189]
[1770643278527,0.5469896,2045.4,2044.4,0.57273636]
[1770643278723,0.5469896,2045.4,2044.5,0.32792636]
[1770643279429,0.58906205,2045.6,2044.5,0.32792636]
[1770643280023,0.58906205,2045.4,2044.7,0.33970724]
[1770643280927,0.58906205,2045.6,2044.9,0.33970724]
[1770643282130,40.8,2045.7,2044.9,0.33970724]
[1770643282433,0.5930587,2045.8,2044.9,0.33970724]
[1770643282933,0.58906205,2045.7,2045.0,0.24473]
[1770643283235,0.5930587,2045.8,2045.1,0.33996953]
[1770643283836,0.5930587,2045.8,2045.3,0.34493443]
[1770643284333,0.5930587,2045.8,2045.0,3.13224977]
[1770643284542,0.58906205,2046.3,2045.5,0.56158194]
[1770643285530,0.59366016,2046.3,2045.5,0.56158194]
[1770643285930,0.59366016,2046.3,2045.3,0.56158194]
[1770643286929,0.59366016,2046.3,2045.2,0.56158194]
[1770643287937,0.59366016,2046.3,2044.9,0.56158194]
[1770643288538,0.58906205,2046.1,2045.1,0.56158194]
[1770643289945,0.58906205,2046.1,2045.3,0.56158194]
[1770643290939,0.00459811,2046.3,2045.5,0.56158194]
[1770643291141,0.00459811,2046.3,2045.6,0.56158194]
[1770643291442,0.00459811,2046.3,2045.7,0.56158194]
[1770643291642,0.00459811,2046.3,2045.7,0.56739491]
[1770643292240,0.58906205,2046.8,2045.9,0.56158194]
[1770643293342,0.59494251,2046.8,2045.9,0.56158194]
[1770643293539,0.59494251,2046.8,2045.7,0.56739491]
[1770643296042,0.59494251,2046.8,2045.9,0.56158194]
[1770643296439,0.59494251,2046.8,2046.0,0.56158194]
[1770643296637,0.59494251,2046.8,2046.1,0.56158194]
[1770643297245,0.00588046,2046.8,2046.1,0.56158194]
[1770643298247,0.59494251,2046.8,2046.3,0.56158194]
[1770643298542,0.58906205,2047.3,2046.5,0.56158194]
[1770643299140,0.58906205,2047.3,2046.4,0.24457]
[1770643299344,0.58906205,2047.3,2046.3,0.56158194]
[1770643299541,0.59272984,2047.3,2046.0,0.56158194]
[1770643303046,0.59272984,2047.3,2046.3,0.24458]
[1770643303254,0.59272984,2047.3,2046.4,0.56158194]
[1770643303556,0.59272984,2047.3,2046.6,0.56158194]
[1770643304450,0.00366779,2047.3,2046.6,0.56158194]
[1770643305156,0.59272984,2047.3,2046.6,0.56158194]
[1770643306153,0.00366779,2047.3,2046.6,0.56158194]
[1770643307055,0.54638562,2047.3,2046.6,0.56158194]
[1770643309255,0.24439,2047.9,2046.6,0.56158194]
[1770643309456,0.54271783,2048.1,2046.8,0.55265543]
[1770643309853,0.54271783,2048.1,2047.0,0.55265543]
[1770643309854,40.8,2048.0,2047.0,0.55265543]
[1770643310048,41.34271783,2048.0,2047.0,0.55265543]
[1770643310250,0.24434,2048.3,2047.0,0.55265543]
[1770643310454,0.00635089,2048.0,2047.0,0.55265543]
[1770643310649,0.54906872,2048.0,2047.0,0.55265543]
[1770643310855,0.54271783,2047.9,2047.0,0.55265543]
[1770643311065,0.54271783,2047.9,2046.7,0.55265543]
[1770643312456,0.54271783,2047.9,2046.9,0.55265543]
[1770643318863,0.54271783,2047.7,2046.9,0.55265543]
[1770643319859,0.54271783,2047.7,2047.1,0.55265543]
[1770643321759,42.71671941,2048.0,2047.1,0.55265543]
[1770643321760,0.54271783,2047.9,2047.1,0.55265543]
[1770643322560,0.54271783,2047.9,2047.3,0.55265543]
[1770643322762,0.00635089,2048.0,2047.5,0.55265543]
[1770643323074,0.54271783,2048.4,2048.0,0.55265543]
[1770643323763,0.54271783,2048.7,2048.0,0.55265543]
[1770643323958,0.54885385,2048.7,2048.0,0.55265543]
[1770643324162,0.24423,2049.3,2048.2,0.55265543]
[1770643324362,0.54271783,2049.8,2048.9,0.55265543]
[1770643324572,0.54271783,2049.8,2049.1,0.55265543]
[1770643325367,0.54271783,2049.8,2048.3,7.46558083]
[1770643325368,0.54271783,2049.6,2048.3,0.55265543]
[1770643326362,0.16007783,2049.6,2048.3,0.55880085]
[1770643327286,0.16007783,2049.6,2048.4,6.40118632]
[1770643327465,0.16007783,2049.6,2048.5,0.55265543]
[1770643327774,0.16007783,2049.6,2048.7,0.55265543]
[1770643328168,0.16007783,2049.6,2048.5,6.97347699]
[1770643328365,0.16007783,2049.6,2048.5,0.55265543]
[1770643332971,0.16007783,2049.6,2048.7,0.55265543]
[1770643339779,0.53765038,2049.4,2048.4,0.55689444]
[1770643342874,0.53765038,2049.3,2048.4,0.55689444]
[1770643345272,0.53765038,2049.3,2048.3,0.00614542]
[1770643345273,0.53765038,2049.1,2048.3,0.00614542]
[1770643345475,0.53765038,2049.1,2047.4,0.55689444]
[1770643345476,0.53765038,2048.5,2047.4,0.55689444]
[1770643346179,0.53765038,2048.2,2047.0,0.55689444]
[1770643346377,0.53765038,2048.2,2047.0,0.5607208]
[1770643346378,0.54355029,2048.2,2047.0,0.5607208]
[1770643346580,0.53765038,2048.1,2047.0,0.5607208]
[1770643347878,0.25024991,2048.2,2046.5,0.55689444]
[1770643347879,0.53765038,2047.6,2046.5,0.55689444]
[1770643348275,0.53765038,2047.5,2046.5,0.55689444]
[1770643348874,0.53765038,2047.5,2046.5,0.56313772]
[1770643349185,0.53765038,2047.0,2045.8,0.55689444]
[1770643349483,0.53765038,2047.0,2045.9,0.55689444]
[1770643350078,0.53765038,2047.0,2045.9,0.56171035]
[1770643351986,0.53765038,2047.4,2046.1,0.55689444]
[1770643352578,0.53765038,2047.2,2046.1,0.55689444]
[1770643354888,0.53765038,2046.6,2045.3,0.55689444]
[1770643355296,0.53765038,2046.6,2045.4,0.55689444]
[1770643355981,0.54252985,2046.6,2045.4,0.56099961]
[1770643358088,0.53765038,2046.4,2045.4,0.56099961]
[1770643358681,0.54252985,2046.6,2045.6,0.55689444]
[1770643359083,0.53765038,2046.5,2045.8,0.55689444]
[1770643361692,0.53765038,2046.5,2045.5,0.55689444]
[1770643361985,0.53765038,2046.5,2045.6,0.55689444]
[1770643366197,0.58353268,2046.3,2045.6,0.55689444]
[1770643368597,0.58353268,2046.3,2045.4,0.54359701]
[1770643380211,0.58353268,2046.1,2045.4,0.00410517]
[1770643380415,0.58353268,2046.1,2045.4,0.54359701]
[1770643381613,0.00487947,2046.6,2045.4,3.40372019]
[1770643381818,0.58841215,2046.6,2045.6,0.53949184]
[1770643382115,0.58841215,2046.6,2045.7,0.53949184]
[1770643385112,0.58353268,2046.5,2045.5,2.86012318]
[1770643385321,0.58353268,2046.5,2045.5,0.53949184]
[1770643385819,0.58353268,2046.5,2045.4,2.86422835]
[1770643385820,0.58353268,2046.3,2045.4,0.00410517]
[1770643386219,0.58353268,2046.3,2045.4,0.54359701]
[1770643396222,0.55385499,2046.2,2045.4,0.54359701]
[1770643412251,0.55385499,2046.2,2045.5,0.58956764]
[1770643413643,0.55385499,2046.2,2045.6,0.58956764]
[1770643413848,0.54199974,2046.4,2045.6,0.58956764]
[1770643414445,0.54199974,2046.4,2045.7,0.58956764]
[1770643414950,0.54199974,2046.4,2045.6,0.58956764]
[1770643419445,0.54687921,2046.6,2045.7,0.58956764]
[1770643419650,0.54687921,2046.6,2045.8,0.58956764]
[1770643424452,0.00487947,2046.6,2045.9,0.58956764]
[1770643424652,6.356e-05,2046.6,2045.9,0.58956764]
[1770643425554,6.356e-05,2046.6,2046.0,0.53830956]
[1770643425753,0.53653798,2046.6,2046.0,0.53830956]
[1770643427955,6.356e-05,2046.6,2046.0,0.53830956]
[1770643429256,6.356e-05,2046.6,2045.9,0.53830956]
[1770643431962,6.356e-05,2046.6,2046.0,0.53830956]
[1770643439862,6.356e-05,2046.6,2046.2,0.53830956]
[1770643440571,0.53647442,2047.1,2046.5,1.91201688]
[1770643440768,0.53647442,2047.2,2046.6,0.53830956]
[1770643441472,0.54229672,2047.2,2046.6,0.53830956]
[1770643442273,0.54229672,2047.2,2046.3,0.53830956]
[1770643442575,0.54229672,2047.2,2046.5,0.53830956]
[1770643443368,0.54229672,2047.2,2046.2,2.86012318]
[1770643443369,0.0058223,2047.2,2046.7,0.53830956]
[1770643443568,43.07353354,2047.8,2046.8,0.53830956]
[1770643443569,1.79700796,2047.8,2046.8,0.53830956]
[1770643443869,0.53647442,2047.8,2046.9,0.53830956]
[1770643444677,0.00350047,2047.8,2047.1,3.39843274]
[1770643444866,0.00350047,2047.8,2047.2,0.53830956]
[1770643445067,0.00350047,2047.8,2047.3,0.53830956]
[1770643445669,0.53647442,2048.2,2047.3,0.53830956]
[1770643445866,0.53647442,2048.2,2047.5,0.53830956]
[1770643446372,0.53647442,2048.2,2047.7,0.53830956]
[1770643446672,0.53647442,2048.6,2047.7,0.53830956]
[1770643446863,0.53647442,2048.9,2047.9,0.53830956]
[1770643447668,0.54033455,2048.9,2047.9,0.53830956]
[1770643448070,0.00386013,2048.9,2047.9,0.53830956]
[1770643448472,0.54033455,2048.9,2047.9,0.53830956]
[1770643449475,0.54033455,2048.9,2048.0,0.53830956]
[1770643449673,0.54033455,2048.9,2048.1,0.53830956]
[1770643452275,0.54033455,2048.9,2047.9,0.53830956]
[1770643453679,0.54033455,2048.9,2048.1,0.53830956]
[1770643454179,0.53647442,2048.8,2047.7,0.53830956]
[1770643454380,0.53647442,2048.6,2047.7,0.53830956]
[1770643455675,0.53647442,2048.6,2047.4,0.58761129]
[1770643455676,0.24431,2048.6,2047.4,0.58761129]
[1770643455881,0.54253278,2048.3,2047.2,0.58761129]
[1770643457582,0.24435,2048.2,2047.0,0.58761129]
[1770643457881,0.54253278,2048.1,2047.0,0.58761129]
[1770643460488,0.54253278,2048.1,2047.2,0.55190959]
[1770643467188,0.55138169,2048.5,2047.5,0.55190959]